[Event "*** Titled Tuesday Blitz"]
[Site "Chess.com"]
[Date "2018.12.04"]
[Round "2"]
[White "ST-Sandavagur"]
[Black "GreatDamnedRedSpot"]
[Result "1-0"]
[WhiteElo "2480"]
[BlackElo "2316"]
[TimeControl "180+2"]
[EndTime "13:22:37 PST"]
[Termination "ST-Sandavagur won by resignation"]

1. e4 {[%clk 0:03:01.9]} 1... e6 {[%clk 0:03:00.7]} 2. d4 {[%clk 0:03:02.8]}
2... d5 {[%clk 0:03:01.8]} 3. Nd2 {[%clk 0:03:04.4]} 3... dxe4 {[%clk 0:03:03]}
4. Nxe4 {[%clk 0:03:06.3]} 4... Bd7 {[%clk 0:03:04.9]} 5. Nf3 {[%clk 0:03:06.2]}
5... Bc6 {[%clk 0:03:06.4]} 6. Bd3 {[%clk 0:03:07.8]} 6... Nd7 {[%clk
0:03:07.9]} 7. O-O {[%clk 0:03:07]} 7... Ngf6 {[%clk 0:03:09.4]} 8. Ng3 {[%clk
0:03:08.6]} 8... Be7 {[%clk 0:03:09.9]} 9. Qe2 {[%clk 0:03:09.6]} 9... Bxf3
{[%clk 0:03:10.4]} 10. Qxf3 {[%clk 0:03:10.2]} 10... c6 {[%clk 0:03:12.1]} 11.
c4 {[%clk 0:03:09]} 11... O-O {[%clk 0:03:12.8]} 12. b3 {[%clk 0:03:09.9]} 12...
a5 {[%clk 0:03:13]} 13. Bb2 {[%clk 0:03:10.7]} 13... a4 {[%clk 0:03:14.2]} 14.
Rfe1 {[%clk 0:03:07.2]} 14... Re8 {[%clk 0:03:12.9]} 15. Bc2 {[%clk 0:03:08.1]}
15... Qb6 {[%clk 0:02:36.2]} 16. Bc3 {[%clk 0:02:58.8]} 16... axb3 {[%clk
0:02:31.8]} 17. axb3 {[%clk 0:03:00.7]} 17... Bb4 {[%clk 0:02:32.9]} 18. c5
{[%clk 0:02:36.5]} 18... Rxa1 {[%clk 0:02:21.9]} 19. Rxa1 {[%clk 0:02:25]} 19...
Qb5 {[%clk 0:02:22.5]} 20. Bd3 {[%clk 0:02:23.4]} 20... Bxc3 {[%clk 0:02:23.7]}
21. Bxb5 {[%clk 0:02:24.3]} 21... Bxa1 {[%clk 0:02:25]} 22. Qd1 {[%clk
0:02:13.7]} 22... Bc3 {[%clk 0:01:57.4]} 23. Qd3 {[%clk 0:02:03.4]} 23... Bb4
{[%clk 0:01:38.9]} 24. Bc4 {[%clk 0:01:57.3]} 24... Rd8 {[%clk 0:01:38.3]} 25.
Qf3 {[%clk 0:01:49.2]} 25... Nf8 {[%clk 0:01:15.9]} 26. Qf4 {[%clk 0:01:30.9]}
26... Ba5 {[%clk 0:00:55.3]} 27. h3 {[%clk 0:01:15.3]} 27... Ng6 {[%clk
0:00:54.9]} 28. Qe3 {[%clk 0:01:15.2]} 28... Ne7 {[%clk 0:00:43.2]} 29. Ne4
{[%clk 0:01:05.5]} 29... Nf5 {[%clk 0:00:37.4]} 30. Nxf6+ {[%clk 0:01:04.4]}
30... gxf6 {[%clk 0:00:39.3]} 31. Qf4 {[%clk 0:01:02.4]} 31... Rxd4 {[%clk
0:00:30.4]} 32. Qb8+ {[%clk 0:01:01]} 32... Kg7 {[%clk 0:00:31.9]} 33. Qxb7
{[%clk 0:01:01.7]} 33... Rd1+ {[%clk 0:00:32.8]} 34. Kh2 {[%clk 0:01:01.7]}
34... Be1 {[%clk 0:00:33.8]} 35. Bxe6 {[%clk 0:00:57.9]} 35... Nh6 {[%clk
0:00:27.7]} 36. Bg4 {[%clk 0:00:54]} 36... Rd2 {[%clk 0:00:19.4]} 37. Qxc6
{[%clk 0:00:53.4]} 37... f5 {[%clk 0:00:16.2]} 38. Bf3 {[%clk 0:00:46.5]} 38...
Bxf2 {[%clk 0:00:16.9]} 39. Qc7 {[%clk 0:00:45.5]} 39... Rc2 {[%clk 0:00:11.6]}
40. c6 {[%clk 0:00:46.1]} 40... Rc1 {[%clk 0:00:12.2]} 41. Qf4 {[%clk
0:00:43.6]} 41... Rc3 {[%clk 0:00:02.7]} 42. Qe5+ {[%clk 0:00:42.1]} 1-0

[Event "*** Titled Tuesday Blitz"]
[Site "Chess.com"]
[Date "2018.12.04"]
[Round "2"]
[White "ChainsOfFantasia"]
[Black "StephenDedalus83"]
[Result "1/2-1/2"]
[WhiteElo "2366"]
[BlackElo "2726"]
[TimeControl "180+2"]
[EndTime "13:22:43 PST"]
[Termination "Game drawn by repetition"]

1. d4 {[%clk 0:03:01.9]} 1... Nf6 {[%clk 0:03:00.9]} 2. c4 {[%clk 0:03:00.5]}
2... g6 {[%clk 0:03:02.4]} 3. Nf3 {[%clk 0:03:01.4]} 3... Bg7 {[%clk 0:03:01.8]}
4. g3 {[%clk 0:03:02.4]} 4... O-O {[%clk 0:02:59.6]} 5. Bg2 {[%clk 0:03:04.3]}
5... d5 {[%clk 0:03:00.8]} 6. O-O {[%clk 0:03:04.7]} 6... dxc4 {[%clk
0:03:01.2]} 7. Na3 {[%clk 0:03:05.4]} 7... c3 {[%clk 0:03:02.3]} 8. bxc3 {[%clk
0:03:06.1]} 8... c5 {[%clk 0:03:03.9]} 9. Re1 {[%clk 0:03:06.9]} 9... Nc6 {[%clk
0:03:05.3]} 10. e3 {[%clk 0:02:52.8]} 10... Qa5 {[%clk 0:03:01.8]} 11. Bb2
{[%clk 0:02:40.9]} 11... Rd8 {[%clk 0:03:02.2]} 12. Qc1 {[%clk 0:02:31.3]} 12...
Bf5 {[%clk 0:02:29.7]} 13. Nc4 {[%clk 0:02:31]} 13... Qa6 {[%clk 0:02:18.6]} 14.
Bf1 {[%clk 0:02:22]} 14... Qa4 {[%clk 0:02:03.7]} 15. dxc5 {[%clk 0:02:09.5]}
15... Bd3 {[%clk 0:01:58.4]} 16. Bxd3 {[%clk 0:02:04.3]} 16... Rxd3 {[%clk
0:01:58.9]} 17. Nce5 {[%clk 0:02:05.1]} 17... Nxe5 {[%clk 0:01:57.2]} 18. Nxe5
{[%clk 0:02:07]} 18... Rd5 {[%clk 0:01:58.2]} 19. c4 {[%clk 0:01:56.6]} 19...
Rxc5 {[%clk 0:01:59]} 20. Bd4 {[%clk 0:01:55]} 20... Rc7 {[%clk 0:01:59.9]} 21.
Qb2 {[%clk 0:01:49.6]} 21... b6 {[%clk 0:01:56.4]} 22. Rac1 {[%clk 0:01:48.5]}
22... Rac8 {[%clk 0:01:57.1]} 23. Qb3 {[%clk 0:01:40.3]} 23... Qe8 {[%clk
0:01:53]} 24. Red1 {[%clk 0:01:39.2]} 24... Ne4 {[%clk 0:01:53.4]} 25. Qb1
{[%clk 0:01:36.6]} 25... Nd6 {[%clk 0:01:52.4]} 26. Qa1 {[%clk 0:01:27.3]} 26...
f6 {[%clk 0:01:50.1]} 27. Nd3 {[%clk 0:01:18.5]} 27... Nxc4 {[%clk 0:01:51]} 28.
a4 {[%clk 0:01:08.5]} 28... e5 {[%clk 0:01:37.6]} 29. Bc3 {[%clk 0:01:09.5]}
29... Bf8 {[%clk 0:01:38.4]} 30. Bb4 {[%clk 0:01:05.6]} 30... e4 {[%clk
0:01:26.4]} 31. Bxf8 {[%clk 0:01:05.3]} 31... exd3 {[%clk 0:01:27.3]} 32. Bh6
{[%clk 0:01:00.4]} 32... Ne5 {[%clk 0:01:16.5]} 33. Rxc7 {[%clk 0:00:56.5]}
33... Rxc7 {[%clk 0:01:17.2]} 34. Bf4 {[%clk 0:00:57.3]} 34... Rd7 {[%clk
0:01:13.4]} 35. Qc3 {[%clk 0:00:55.8]} 35... Nf3+ {[%clk 0:01:07.2]} 36. Kg2
{[%clk 0:00:55.6]} 36... Qe4 {[%clk 0:01:08]} 37. Qc8+ {[%clk 0:00:42]} 37...
Kf7 {[%clk 0:01:08.5]} 38. Qxd7+ {[%clk 0:00:43.1]} 38... Kg8 {[%clk 0:01:09.8]}
39. Qd8+ {[%clk 0:00:35.6]} 39... Kg7 {[%clk 0:01:09.5]} 40. Qd7+ {[%clk
0:00:24]} 40... Kg8 {[%clk 0:01:10]} 41. Qc8+ {[%clk 0:00:20.6]} 41... Kg7
{[%clk 0:01:09.6]} 42. Qc7+ {[%clk 0:00:22]} 42... Kg8 {[%clk 0:01:10.2]} 43.
Qb8+ {[%clk 0:00:23.3]} 43... Kg7 {[%clk 0:01:04.9]} 44. Qxa7+ {[%clk
0:00:24.8]} 44... Kg8 {[%clk 0:01:06.1]} 45. Qb8+ {[%clk 0:00:25.7]} 45... Kg7
{[%clk 0:01:07.3]} 46. Qc7+ {[%clk 0:00:26.2]} 46... Kg8 {[%clk 0:01:08.6]} 47.
Qd8+ {[%clk 0:00:25.4]} 47... Kg7 {[%clk 0:01:09.7]} 48. Qd7+ {[%clk 0:00:26.2]}
48... Kg8 {[%clk 0:01:10.2]} 49. Qc8+ {[%clk 0:00:28.1]} 49... Kg7 {[%clk
0:01:10.9]} 50. Qc7+ {[%clk 0:00:28.8]} 50... Kg8 {[%clk 0:01:11.9]} 51. Qd8+
{[%clk 0:00:28.2]} 51... Kg7 {[%clk 0:01:12.6]} 52. Qd7+ {[%clk 0:00:28.6]}
52... Kg8 {[%clk 0:01:13.8]} 53. Qd8+ {[%clk 0:00:28.1]} 53... Kg7 {[%clk
0:01:15]} 54. Qd7+ {[%clk 0:00:27.7]} 54... Kg8 {[%clk 0:01:16.1]} 55. Qd8+
{[%clk 0:00:21]} 55... Kg7 {[%clk 0:01:17]} 56. Qd7+ {[%clk 0:00:22.3]} 56...
Kg8 {[%clk 0:01:17.6]} 1/2-1/2

[Event "*** Titled Tuesday Blitz"]
[Site "Chess.com"]
[Date "2018.12.04"]
[Round "2"]
[White "Kimster98"]
[Black "VladimirBelous"]
[Result "0-1"]
[WhiteElo "2566"]
[BlackElo "2739"]
[TimeControl "180+2"]
[EndTime "13:22:50 PST"]
[Termination "VladimirBelous won by resignation"]

1. d4 {[%clk 0:03:01.9]} 1... c5 {[%clk 0:02:59.4]} 2. d5 {[%clk 0:03:01.2]}
2... g6 {[%clk 0:03:00.6]} 3. c4 {[%clk 0:03:01]} 3... Bg7 {[%clk 0:03:01.7]} 4.
e4 {[%clk 0:03:02.9]} 4... d6 {[%clk 0:03:03.2]} 5. h3 {[%clk 0:03:03.5]} 5...
e6 {[%clk 0:03:04.7]} 6. Bd3 {[%clk 0:03:03.4]} 6... Ne7 {[%clk 0:03:05.6]} 7.
Nc3 {[%clk 0:02:59.2]} 7... O-O {[%clk 0:03:05.9]} 8. Nf3 {[%clk 0:03:00.2]}
8... exd5 {[%clk 0:03:03.4]} 9. exd5 {[%clk 0:03:02.1]} 9... Nd7 {[%clk
0:03:02.8]} 10. O-O {[%clk 0:03:02.9]} 10... Ne5 {[%clk 0:03:04]} 11. Nxe5
{[%clk 0:03:04.1]} 11... Bxe5 {[%clk 0:03:02.5]} 12. Bh6 {[%clk 0:03:04]} 12...
Re8 {[%clk 0:03:03.5]} 13. Bg5 {[%clk 0:03:04.3]} 13... a6 {[%clk 0:02:59.2]}
14. Ne4 {[%clk 0:03:00.9]} 14... Kg7 {[%clk 0:02:51.6]} 15. Qd2 {[%clk
0:02:54.7]} 15... Qb6 {[%clk 0:02:46.4]} 16. Bh6+ {[%clk 0:02:23.2]} 16... Kh8
{[%clk 0:02:47]} 17. Bg5 {[%clk 0:02:19.9]} 17... Ng8 {[%clk 0:02:47.1]} 18.
Rab1 {[%clk 0:02:17.8]} 18... Bf5 {[%clk 0:02:42.8]} 19. Rfe1 {[%clk 0:02:15.2]}
19... Kg7 {[%clk 0:02:38.4]} 20. g4 {[%clk 0:01:54.7]} 20... Bxe4 {[%clk
0:02:33.1]} 21. Bxe4 {[%clk 0:01:56.6]} 21... h6 {[%clk 0:02:31.5]} 22. Bf4
{[%clk 0:01:49.5]} 22... Bxf4 {[%clk 0:02:24.6]} 23. Qxf4 {[%clk 0:01:51.4]}
23... Re5 {[%clk 0:02:21.7]} 24. Bd3 {[%clk 0:01:36.7]} 24... Rae8 {[%clk
0:02:20.2]} 25. Rxe5 {[%clk 0:01:37.8]} 25... Rxe5 {[%clk 0:02:21.4]} 26. Qd2
{[%clk 0:01:39]} 26... Nf6 {[%clk 0:02:16.4]} 27. f4 {[%clk 0:01:35.9]} 27...
Re7 {[%clk 0:02:16.3]} 28. Qc3 {[%clk 0:01:37.2]} 28... Qb4 {[%clk 0:02:13.5]}
29. Qxb4 {[%clk 0:01:35.3]} 29... cxb4 {[%clk 0:02:15.4]} 30. Kf2 {[%clk
0:01:22.3]} 30... Ne4+ {[%clk 0:02:15.2]} 31. Kg2 {[%clk 0:01:16.3]} 31... Nc5
{[%clk 0:02:11.4]} 32. Rd1 {[%clk 0:01:10]} 32... g5 {[%clk 0:01:58.7]} 33. Kf3
{[%clk 0:01:04.1]} 33... a5 {[%clk 0:01:50.6]} 34. fxg5 {[%clk 0:00:56.9]} 34...
hxg5 {[%clk 0:01:50.2]} 35. Bf5 {[%clk 0:00:58.4]} 35... a4 {[%clk 0:01:47]} 36.
h4 {[%clk 0:00:58.2]} 36... gxh4 {[%clk 0:01:47.6]} 37. Rh1 {[%clk 0:00:59.7]}
37... Kf6 {[%clk 0:01:39.5]} 38. Rxh4 {[%clk 0:00:59.6]} 38... Re1 {[%clk
0:01:38.5]} 39. Rh6+ {[%clk 0:00:45.2]} 39... Ke7 {[%clk 0:01:34.7]} 40. g5
{[%clk 0:00:36.5]} 40... Rf1+ {[%clk 0:01:17.5]} 41. Kg4 {[%clk 0:00:36.3]}
41... Rg1+ {[%clk 0:01:19.1]} 42. Kf4 {[%clk 0:00:36.8]} 42... Rg2 {[%clk
0:01:12]} 43. Rh7 {[%clk 0:00:34.6]} 43... Kf8 {[%clk 0:01:13.4]} 44. Rh8+
{[%clk 0:00:25.9]} 44... Kg7 {[%clk 0:01:13.2]} 45. Rh6 {[%clk 0:00:25.9]} 45...
Rxb2 {[%clk 0:01:08.1]} 46. Rxd6 {[%clk 0:00:25.5]} 46... Rxa2 {[%clk
0:01:08.8]} 47. g6 {[%clk 0:00:21.9]} 47... Rf2+ {[%clk 0:01:03.1]} 48. Kg4
{[%clk 0:00:21.3]} 48... a3 {[%clk 0:01:02.4]} 49. Rd8 {[%clk 0:00:21]} 49... a2
{[%clk 0:01:00.8]} 50. gxf7 {[%clk 0:00:20]} 50... Kxf7 {[%clk 0:01:00]} 51. Ra8
{[%clk 0:00:16.6]} 51... Na6 {[%clk 0:01:00.3]} 52. Ra7 {[%clk 0:00:12.3]} 52...
a1=Q {[%clk 0:00:57.9]} 53. Rxb7+ {[%clk 0:00:13.7]} 53... Kf8 {[%clk
0:00:58.6]} 0-1

[Event "*** Titled Tuesday Blitz"]
[Site "Chess.com"]
[Date "2018.12.04"]
[Round "2"]
[White "GukeshDommaraju"]
[Black "Zarikovs1999"]
[Result "1-0"]
[WhiteElo "2695"]
[BlackElo "2347"]
[TimeControl "180+2"]
[EndTime "13:22:52 PST"]
[Termination "GukeshDommaraju won by resignation"]

1. Nf3 {[%clk 0:03:01.9]} 1... Nf6 {[%clk 0:02:59.5]} 2. d4 {[%clk 0:03:02.8]}
2... e6 {[%clk 0:02:57.6]} 3. Bf4 {[%clk 0:03:02.4]} 3... d5 {[%clk 0:02:56.5]}
4. e3 {[%clk 0:03:03.1]} 4... Bd6 {[%clk 0:02:55.1]} 5. Bg3 {[%clk 0:03:03.3]}
5... c5 {[%clk 0:02:52.6]} 6. Bb5+ {[%clk 0:02:56.8]} 6... Nc6 {[%clk
0:02:49.5]} 7. O-O {[%clk 0:02:56]} 7... O-O {[%clk 0:02:47]} 8. Bxc6 {[%clk
0:02:47.4]} 8... bxc6 {[%clk 0:02:46.8]} 9. c3 {[%clk 0:02:47.4]} 9... Ne4
{[%clk 0:02:37.4]} 10. Bxd6 {[%clk 0:02:46.9]} 10... Qxd6 {[%clk 0:02:34.9]} 11.
Nbd2 {[%clk 0:02:47.3]} 11... Ba6 {[%clk 0:02:20.1]} 12. Re1 {[%clk 0:02:44.1]}
12... Nxd2 {[%clk 0:02:17.6]} 13. Nxd2 {[%clk 0:02:41.8]} 13... cxd4 {[%clk
0:02:19.5]} 14. cxd4 {[%clk 0:02:23.4]} 14... e5 {[%clk 0:02:16.9]} 15. Nb3
{[%clk 0:02:18.7]} 15... Bc4 {[%clk 0:02:11.3]} 16. Nc5 {[%clk 0:02:11.9]} 16...
exd4 {[%clk 0:01:58.3]} 17. Qxd4 {[%clk 0:02:13.8]} 17... Rab8 {[%clk
0:01:46.1]} 18. b3 {[%clk 0:02:14]} 18... Rb5 {[%clk 0:01:36.8]} 19. Ne4 {[%clk
0:02:11.1]} 19... Qe6 {[%clk 0:01:18.3]} 20. bxc4 {[%clk 0:02:10.8]} 20... Rb4
{[%clk 0:01:09.5]} 21. Nc5 {[%clk 0:02:09.9]} 21... Qe7 {[%clk 0:01:03.4]} 22.
Rac1 {[%clk 0:02:06.5]} 22... Rd8 {[%clk 0:00:58.9]} 23. Nd3 {[%clk 0:01:59.4]}
23... dxc4 {[%clk 0:00:57.6]} 24. Nxb4 {[%clk 0:01:55.3]} 24... Rxd4 {[%clk
0:00:49.5]} 25. Nxc6 {[%clk 0:01:55.9]} 25... Qd7 {[%clk 0:00:42]} 26. Nxd4
{[%clk 0:01:47.6]} 26... Qc7 {[%clk 0:00:42.9]} 27. Rc2 {[%clk 0:01:46.8]} 27...
g6 {[%clk 0:00:42.1]} 28. Rec1 {[%clk 0:01:47.2]} 28... Qa5 {[%clk 0:00:40.6]}
29. g3 {[%clk 0:01:41.9]} 29... Kg7 {[%clk 0:00:24.9]} 30. Rxc4 {[%clk
0:01:34.5]} 30... Qxa2 {[%clk 0:00:25]} 31. Rc7 {[%clk 0:01:35]} 31... a5 {[%clk
0:00:24.8]} 32. Ra7 {[%clk 0:01:35.5]} 32... a4 {[%clk 0:00:22.8]} 33. Rcc7
{[%clk 0:01:35.7]} 33... a3 {[%clk 0:00:21.8]} 34. Rxf7+ {[%clk 0:01:31.9]}
34... Kh6 {[%clk 0:00:22.7]} 35. Nf3 {[%clk 0:01:12.3]} 35... Kh5 {[%clk
0:00:17.9]} 36. Rf4 {[%clk 0:00:59]} 36... g5 {[%clk 0:00:15.5]} 37. Rfa4 {[%clk
0:00:56.1]} 37... g4 {[%clk 0:00:12.2]} 38. R7a5+ {[%clk 0:00:46]} 38... Kg6
{[%clk 0:00:12.9]} 39. Rxg4+ {[%clk 0:00:45.4]} 39... Kf6 {[%clk 0:00:14.3]} 40.
Rga4 {[%clk 0:00:45.7]} 40... Qb1+ {[%clk 0:00:13.5]} 41. Kg2 {[%clk 0:00:46.9]}
41... a2 {[%clk 0:00:13.3]} 42. Rxa2 {[%clk 0:00:47.6]} 42... h5 {[%clk
0:00:14.4]} 43. Ra6+ {[%clk 0:00:47.1]} 43... Kf7 {[%clk 0:00:14.9]} 44. R2a5
{[%clk 0:00:47.1]} 44... h4 {[%clk 0:00:14.4]} 45. Nxh4 {[%clk 0:00:46]} 45...
Qe4+ {[%clk 0:00:13.7]} 46. Nf3 {[%clk 0:00:46.5]} 46... Ke7 {[%clk 0:00:11.7]}
47. Re5+ {[%clk 0:00:45.9]} 47... Qxe5 {[%clk 0:00:13]} 48. Nxe5 {[%clk
0:00:47.8]} 1-0

[Event "*** Titled Tuesday Blitz"]
[Site "Chess.com"]
[Date "2018.12.04"]
[Round "2"]
[White "kleinebeer98"]
[Black "Rashad_Zeynalli"]
[Result "1-0"]
[WhiteElo "2685"]
[BlackElo "2341"]
[TimeControl "180+2"]
[EndTime "13:22:56 PST"]
[Termination "kleinebeer98 won by resignation"]

1. e4 {[%clk 0:03:01.9]} 1... e5 {[%clk 0:02:58.3]} 2. Nf3 {[%clk 0:03:01.6]}
2... Nf6 {[%clk 0:02:58]} 3. Nc3 {[%clk 0:03:01.6]} 3... Nc6 {[%clk 0:02:56.2]}
4. a3 {[%clk 0:03:00.5]} 4... d5 {[%clk 0:02:54.4]} 5. Bb5 {[%clk 0:02:58.9]}
5... dxe4 {[%clk 0:02:45.5]} 6. Nxe5 {[%clk 0:02:55.2]} 6... Bd7 {[%clk
0:02:46.1]} 7. Nxd7 {[%clk 0:02:53.8]} 7... Qxd7 {[%clk 0:02:48]} 8. O-O {[%clk
0:02:50.6]} 8... O-O-O {[%clk 0:02:42.8]} 9. Re1 {[%clk 0:02:35.5]} 9... Re8
{[%clk 0:02:42.5]} 10. d3 {[%clk 0:02:32.6]} 10... Bc5 {[%clk 0:02:33.8]} 11.
Be3 {[%clk 0:02:23.7]} 11... Bxe3 {[%clk 0:02:16.9]} 12. Rxe3 {[%clk 0:02:25.6]}
12... exd3 {[%clk 0:02:10.6]} 13. Rxd3 {[%clk 0:02:23.2]} 13... Qe6 {[%clk
0:02:05.5]} 14. h3 {[%clk 0:02:10.5]} 14... Rd8 {[%clk 0:02:05]} 15. Qf1 {[%clk
0:01:53.5]} 15... Nd4 {[%clk 0:02:00.4]} 16. Ba4 {[%clk 0:01:49.7]} 16... Qf5
{[%clk 0:01:50.2]} 17. Rad1 {[%clk 0:01:34.8]} 17... Ne6 {[%clk 0:01:50.4]} 18.
Bb3 {[%clk 0:01:31.5]} 18... Nf4 {[%clk 0:01:47.9]} 19. Rf3 {[%clk 0:01:28]}
19... Qg5 {[%clk 0:01:38.1]} 20. Rxd8+ {[%clk 0:01:26.2]} 20... Rxd8 {[%clk
0:01:37.8]} 21. Bxf7 {[%clk 0:01:23.6]} 21... Rd2 {[%clk 0:01:37.8]} 22. g3
{[%clk 0:01:22.1]} 22... N6h5 {[%clk 0:01:11.5]} 23. Bxh5 {[%clk 0:01:12]} 23...
Nxh5 {[%clk 0:01:11.6]} 24. Qc4 {[%clk 0:01:07.5]} 24... Nf6 {[%clk 0:01:02.1]}
25. Ne4 {[%clk 0:00:59.3]} 25... Rd1+ {[%clk 0:00:57.9]} 26. Kg2 {[%clk
0:00:58.6]} 26... Qc1 {[%clk 0:00:55.2]} 27. Rd3 {[%clk 0:00:45]} 27... Rxd3
{[%clk 0:00:30.9]} 28. Qxd3 {[%clk 0:00:43.2]} 28... Qxb2 {[%clk 0:00:27.7]} 29.
Nxf6 {[%clk 0:00:40.9]} 29... gxf6 {[%clk 0:00:17.2]} 30. Qf5+ {[%clk
0:00:38.7]} 30... Kd8 {[%clk 0:00:17.2]} 31. Qxh7 {[%clk 0:00:33.8]} 31... Qxa3
{[%clk 0:00:16.3]} 32. Qh8+ {[%clk 0:00:35.2]} 32... Ke7 {[%clk 0:00:16.9]} 33.
Qg7+ {[%clk 0:00:36.7]} 33... Ke6 {[%clk 0:00:17.1]} 34. Qxc7 {[%clk 0:00:38.2]}
34... Qb4 {[%clk 0:00:16.4]} 35. h4 {[%clk 0:00:31.9]} 35... a5 {[%clk
0:00:12.1]} 36. h5 {[%clk 0:00:33.2]} 36... a4 {[%clk 0:00:13]} 37. h6 {[%clk
0:00:33.4]} 37... a3 {[%clk 0:00:11.4]} 38. Qc8+ {[%clk 0:00:34.3]} 38... Kf7
{[%clk 0:00:11.1]} 39. Qd7+ {[%clk 0:00:26.6]} 39... Kg6 {[%clk 0:00:10.7]} 40.
Qg7+ {[%clk 0:00:27.8]} 40... Kf5 {[%clk 0:00:11.3]} 41. h7 {[%clk 0:00:29.3]}
41... a2 {[%clk 0:00:10.7]} 42. h8=Q {[%clk 0:00:29.9]} 42... Qe4+ {[%clk
0:00:10.9]} 43. Kh2 {[%clk 0:00:28.3]} 43... a1=Q {[%clk 0:00:11.3]} 44. Qhh7+
{[%clk 0:00:29.5]} 44... Ke5 {[%clk 0:00:11.4]} 45. Qe7+ {[%clk 0:00:30.8]} 1-0

[Event "*** Titled Tuesday Blitz"]
[Site "Chess.com"]
[Date "2018.12.04"]
[Round "2"]
[White "jocmil"]
[Black "MatyChess1"]
[Result "1-0"]
[WhiteElo "2489"]
[BlackElo "2533"]
[TimeControl "180+2"]
[EndTime "13:22:59 PST"]
[Termination "jocmil won by resignation"]

1. e4 {[%clk 0:02:49.9]} 1... c5 {[%clk 0:02:56.8]} 2. Nc3 {[%clk 0:02:50.1]}
2... Nc6 {[%clk 0:02:55.8]} 3. Bb5 {[%clk 0:02:51.1]} 3... Nd4 {[%clk
0:02:50.1]} 4. Nge2 {[%clk 0:02:50.7]} 4... e6 {[%clk 0:02:45.1]} 5. O-O {[%clk
0:02:49]} 5... Ne7 {[%clk 0:02:07.7]} 6. Nxd4 {[%clk 0:02:48.5]} 6... cxd4
{[%clk 0:02:09.6]} 7. Ne2 {[%clk 0:02:49.8]} 7... Nc6 {[%clk 0:02:10.8]} 8. d3
{[%clk 0:02:38.2]} 8... Bc5 {[%clk 0:01:59.6]} 9. a3 {[%clk 0:02:36.2]} 9... O-O
{[%clk 0:01:57.2]} 10. f4 {[%clk 0:02:34.9]} 10... f5 {[%clk 0:01:56.4]} 11. Ng3
{[%clk 0:02:35.5]} 11... Ne7 {[%clk 0:01:55.1]} 12. Bc4 {[%clk 0:02:35.2]} 12...
a6 {[%clk 0:01:53.8]} 13. Bd2 {[%clk 0:02:35]} 13... b5 {[%clk 0:01:54.4]} 14.
Bb3 {[%clk 0:02:35.9]} 14... Bb7 {[%clk 0:01:54.9]} 15. Qe2 {[%clk 0:02:37]}
15... Qe8 {[%clk 0:01:18.2]} 16. Rae1 {[%clk 0:02:36.2]} 16... Qg6 {[%clk
0:01:18.4]} 17. Kh1 {[%clk 0:01:56.2]} 17... Rf7 {[%clk 0:01:13.6]} 18. c3
{[%clk 0:01:37.5]} 18... Raf8 {[%clk 0:01:10]} 19. e5 {[%clk 0:01:34.6]} 19...
Qh6 {[%clk 0:01:01.4]} 20. Qh5 {[%clk 0:01:19.7]} 20... Ng6 {[%clk 0:00:51.1]}
21. Qxh6 {[%clk 0:01:01.1]} 21... gxh6 {[%clk 0:00:52.1]} 22. cxd4 {[%clk
0:00:57.2]} 22... Bxd4 {[%clk 0:00:52.1]} 23. Bc3 {[%clk 0:00:58.4]} 23... Bxc3
{[%clk 0:00:28.6]} 24. bxc3 {[%clk 0:01:00.3]} 24... Nh4 {[%clk 0:00:30.3]} 25.
Rf2 {[%clk 0:00:50.5]} 25... Rc8 {[%clk 0:00:31.6]} 26. c4 {[%clk 0:00:49.6]}
26... Rff8 {[%clk 0:00:27.6]} 27. Kg1 {[%clk 0:00:49.6]} 27... Rc7 {[%clk
0:00:27.9]} 28. Nh5 {[%clk 0:00:49.8]} 28... Rfc8 {[%clk 0:00:26.7]} 29. Nf6+
{[%clk 0:00:50.5]} 29... Kg7 {[%clk 0:00:27.2]} 30. Re3 {[%clk 0:00:44.6]} 30...
Nxg2 {[%clk 0:00:17]} 31. Rxg2+ {[%clk 0:00:45.4]} 31... Bxg2 {[%clk 0:00:18.9]}
32. Kxg2 {[%clk 0:00:45.9]} 32... bxc4 {[%clk 0:00:20.1]} 33. Bxc4 {[%clk
0:00:46.2]} 33... Rb8 {[%clk 0:00:21.1]} 34. Rg3+ {[%clk 0:00:43.6]} 34... Kf7
{[%clk 0:00:21.3]} 35. Nxh7 {[%clk 0:00:42.9]} 35... Rb2+ {[%clk 0:00:21.9]} 36.
Kh3 {[%clk 0:00:42.5]} 36... Rf2 {[%clk 0:00:19.2]} 37. Kh4 {[%clk 0:00:36.2]}
37... Rxf4+ {[%clk 0:00:19.6]} 38. Kh5 {[%clk 0:00:37.5]} 38... Rf2 {[%clk
0:00:20.4]} 39. h3 {[%clk 0:00:33]} 39... Rc5 {[%clk 0:00:21]} 40. Kxh6 {[%clk
0:00:33.4]} 40... Rxe5 {[%clk 0:00:21.6]} 41. Rg7+ {[%clk 0:00:34.7]} 41... Ke8
{[%clk 0:00:21.6]} 42. Nf6+ {[%clk 0:00:35.8]} 42... Kd8 {[%clk 0:00:17.3]} 43.
Rxd7+ {[%clk 0:00:35.7]} 43... Kc8 {[%clk 0:00:18.8]} 44. Bxa6+ {[%clk
0:00:36.9]} 44... Kb8 {[%clk 0:00:19.8]} 45. Rb7+ {[%clk 0:00:38.2]} 45... Ka8
{[%clk 0:00:21.1]} 46. Nd7 {[%clk 0:00:39.1]} 46... Rb5 {[%clk 0:00:05.8]} 47.
Rxb5 {[%clk 0:00:39.9]} 1-0